{"text_format":"1","workbook":"xlsx","n_sheets":1,"sheets":["来光"],"not_rendered":{"charts":0,"images":3,"macros":1,"external_links":0,"defined_names":0,"comments":0,"pivot_tables":0},"unopened":[],"bounds":{"document_bytes":16777216,"sheet_cells":100000,"rows_first":2000,"rows_last":500,"rows_between":2000,"halvings":0,"cell_chars":16384,"cell_head_chars":4096},"cells_cut":0,"cells_raw":0,"read":"whole","date_system":"1900"}

{"sheet":"来光","index":0,"n_rows":73,"n_cols":5,"rows_kept":73,"cut":false,"hidden":false,"merged":[[2,0,2,2]]}
[]
[]
[{"$f":"TODAY()","v":"2021-02-25"},null,null,{"$f":"A3","v":44252}]
[]
[]
[]
[]
[]
[]
[]
[]
[]
[]
[]
[]
[]
[]
[]
[]
[]
[]
[]
[]
[]
[]
[]
[]
[]
[]
[]
[]
[]
[]
[]
[]
[]
[]
[]
[]
[]
[]
[]
[]
[]
[]
[]
[]
[]
[]
[null,null,50,"神火清明　神水清明　神風清明","しんかせいめい　しんすいせいめい　しんぷうせいめい"]
[null,null,{"$f":"C50+1","v":51}]
[null,null,{"$f":"C51+1","v":52},"神火清明　神水清明　神風清明","しんかせいめい　しんすいせいめい　しんぷうせいめい"]
[null,null,53]
[null,null,54,"神火清明　神水清明　神風清明","しんかせいめい　しんすいせいめい　しんぷうせいめい"]
[null,null,55,"祓い給え　清め給え","はらいたまえ　きよめたまえ"]
[null,null,56,"六根清浄","ろっこんしょうじょう"]
[null,null,57,"急急如律令","きゅうきゅうにょりつりょう"]
[null,null,58,"六根清浄","ろっこんしょうじょう"]
[null,null,59,"急急如律令","きゅうきゅうにょりつりょう"]
[null,null,60]
[null,null,61,"元柱固具","がんちゅうこしん"]
[null,null,62,"八隅八気","はちぐうはつき"]
[null,null,63,"五陽五神","ごようごしん"]
[null,null,64,"陽動二衝","おんみょうにしょ"]
[null,null,65,"害気を攘払し","がいきをゆずりはらいし"]
[null,null,66,"四柱神を鎮護し","しちゅうしんをちんごし"]
[null,null,67,"五神開衢","ごしんかいえい"]
[null,null,68,"悪鬼を逐い","あっきをはらい"]
[null,null,69,"奇動霊光","きどうれいこう"]
[null,null,70,"四隅に衝徹し","しぐうにしょうてつし"]
[null,null,71,"元柱固具","がんちゅうこしん"]
[null,null,72,"安鎮を得んことを","あんちんをえんことを"]
[null,null,73,"慎みて五陽霊神に願い奉る","つとみてごようれいしんにねがいたてまつる"]